fUSD/lending_fUSD_20241225
["ID","MTS","AMOUNT","RATE_DAILY","PERIOD"]
[346658677,1735157444894,-500.0,0.00012255,2]
[346658678,1735157444904,-1270.5,0.00012255,2]
[346658679,1735157444914,-500.0,0.00012255,2]
[346658680,1735157444923,-500.0,0.00012255,2]
[346658681,1735157444933,-500.0,0.00012255,2]
[346658682,1735157444942,-904.99,0.00012255,2]
[346658683,1735157444951,-500.0,0.00012255,2]
[346658684,1735157444961,-500.0,0.00012255,2]
[346658685,1735157444970,-500.0,0.00012255,2]
[346658686,1735157444980,-2243.52,0.00012255,2]
[346658687,1735157444990,-500.0,0.00012255,2]
[346658688,1735157445000,-500.0,0.00012255,2]
[346658689,1735157445010,-500.0,0.00012255,2]
[346658690,1735157445024,-500.0,0.00012255,2]
[346658691,1735157445034,-500.0,0.00012255,2]
[346658692,1735157445044,-1412.94,0.00012255,2]
[346658693,1735157445053,-500.0,0.00012255,2]
[346658694,1735157445063,-500.0,0.00012255,2]
[346658695,1735157445073,-173.75,0.00012255,2]
[346658696,1735157445082,-12036.02,0.00012255,2]
[346658697,1735157445092,-500.0,0.00012255,2]
[346658698,1735157445102,-500.0,0.00012255,2]
[346658699,1735157445112,-500.0,0.00012255,2]
[346658700,1735157445122,-500.0,0.00012255,2]
[346658701,1735157445131,-500.0,0.00012255,2]
[346658702,1735157445141,-500.0,0.00012255,2]
[346658703,1735157445154,-1477.09,0.00012255,2]
[346658704,1735157445163,-500.0,0.00012255,2]
[346658705,1735157445172,-1008.13,0.00012255,2]
[346658706,1735157445181,-500.0,0.00012255,2]
[346658707,1735157445380,-500.0,0.00012255,2]
[346658708,1735157445390,-19617.2198564,0.00012256,2]
[346658709,1735157445696,-500.0,0.00012254,2]
[346658710,1735157445705,-2612.86581674,0.00012256,2]
[346658711,1735157445717,-919.97299999,0.00012256,2]
[346658712,1735157445734,-295.46036864,0.00012256,2]
[346658713,1735157445745,-7740.22249658,0.00012256,2]
[346658714,1735157445759,-58306.80089553,0.00012256,2]
[346658720,1735157446126,-500.0,0.00012255,2]
[346658721,1735157446136,-3895.2662755,0.00012256,2]
[346658722,1735157446145,-879.9153,0.00012256,2]
[346658723,1735157446155,-500.0,0.00012256,2]
[346658724,1735157446166,-500.0,0.00012256,2]
[346658725,1735157446175,-473.9005405,0.00012256,2]
[346658726,1735157446253,-26.0994595,0.00012256,2]
[346658727,1735157446262,-574.2,0.00012256,2]
[346658728,1735157446272,-500.0,0.00012256,2]
[346658729,1735157446282,-49.0580155,0.00012256,2]
[346658730,1735157446294,-235.1919845,0.00012256,2]
[346658731,1735157446303,-500.0,0.00012256,2]
[346658732,1735157446314,-500.0,0.00012256,2]
[346658733,1735157446324,-500.0,0.00012256,2]
[346658734,1735157446333,-500.0,0.00012256,2]
[346658735,1735157446342,-500.0,0.00012256,2]
[346658736,1735157446352,-245.96,0.00012256,2]
[346658737,1735157446362,-500.0,0.00012256,2]
[346658738,1735157446371,-500.0,0.00012256,2]
[346658739,1735157446381,-500.0,0.00012256,2]
[346658740,1735157446391,-500.0,0.00012256,2]
[346658741,1735157446400,-500.0,0.00012256,2]
[346658742,1735157446410,-500.0,0.00012256,2]
[346658743,1735157446419,-500.0,0.00012256,2]
[346658744,1735157446430,-500.0,0.00012256,2]
[346658745,1735157446439,-500.0,0.00012256,2]
[346658746,1735157446449,-797.75,0.00012256,2]
[346658748,1735157446459,-500.0,0.00012256,2]
[346658749,1735157446469,-500.0,0.00012256,2]
[346658750,1735157446478,-500.0,0.00012256,2]
[346658751,1735157446487,-500.0,0.00012256,2]
[346658752,1735157446497,-500.0,0.00012256,2]
[346658753,1735157446506,-500.0,0.00012256,2]
[346658755,1735157446516,-500.0,0.00012256,2]
[346658757,1735157446525,-500.0,0.00012256,2]
[346658758,1735157446534,-500.0,0.00012256,2]
[346658760,1735157446543,-500.0,0.00012256,2]
[346658761,1735157446552,-501.07,0.00012256,2]
[346658762,1735157446562,-500.0,0.00012256,2]
[346658764,1735157446571,-500.0,0.00012256,2]
[346658765,1735157446580,-500.0,0.00012256,2]
[346658766,1735157446589,-500.0,0.00012256,2]
[346658767,1735157446598,-500.0,0.00012256,2]
[346658768,1735157446607,-379.63591858,0.00012256,2]
[346658769,1735157446619,-120.36408142,0.00012256,2]
[346658770,1735157446629,-500.0,0.00012256,2]
[346658771,1735157446638,-500.0,0.00012256,2]
[346658772,1735157446647,-500.0,0.00012256,2]
[346658773,1735157446657,-500.0,0.00012256,2]
[346658774,1735157446666,-500.0,0.00012256,2]
[346658775,1735157446675,-500.0,0.00012256,2]
[346658776,1735157446685,-500.0,0.00012256,2]
[346658777,1735157446695,-500.0,0.00012256,2]
[346658778,1735157446704,-500.0,0.00012256,2]
[346658779,1735157446713,-500.0,0.00012256,2]
[346658780,1735157446723,-538.88,0.00012256,2]
[346658781,1735157446732,-500.0,0.00012256,2]
[346658782,1735157446742,-500.0,0.00012256,2]
[346658783,1735157446751,-500.0,0.00012256,2]
[346658784,1735157446764,-500.0,0.00012256,2]
[346658785,1735157446773,-500.0,0.00012256,2]
[346658786,1735157446782,-500.0,0.00012256,2]
[346658787,1735157446791,-500.0,0.00012256,2]
[346658788,1735157446803,-500.0,0.00012256,2]
[346658789,1735157446812,-500.0,0.00012256,2]
[346658790,1735157446821,-500.0,0.00012256,2]
[346658791,1735157446832,-500.0,0.00012256,2]
[346658792,1735157446841,-500.0,0.00012256,2]
[346658793,1735157446850,-500.0,0.00012256,2]
[346658794,1735157446860,-500.0,0.00012256,2]
[346658795,1735157446870,-500.0,0.00012256,2]
[346658796,1735157446879,-500.0,0.00012256,2]
[346658797,1735157446889,-704.43,0.00012256,2]
[346658798,1735157446898,-500.0,0.00012256,2]
[346658799,1735157446908,-780.2,0.00012256,2]
[346658800,1735157446917,-500.0,0.00012256,2]
[346658801,1735157446927,-500.0,0.00012256,2]
[346658802,1735157446937,-577.74,0.00012256,2]
[346658803,1735157446946,-500.0,0.00012256,2]
[346658804,1735157446955,-500.0,0.00012256,2]
[346658805,1735157446965,-500.0,0.00012256,2]
[346658806,1735157446975,-500.0,0.00012256,2]
[346658807,1735157446984,-765.14,0.00012256,2]
[346658808,1735157446993,-500.0,0.00012256,2]
[346658809,1735157447003,-500.0,0.00012256,2]
[346658810,1735157447012,-500.0,0.00012256,2]
[346658811,1735157447022,-500.0,0.00012256,2]
[346658812,1735157447031,-1605.74,0.00012256,2]
[346658813,1735157447041,-500.0,0.00012256,2]
[346658814,1735157447050,-9198.94,0.00012256,2]
[346658815,1735157447059,-482.92,0.00012256,2]
[346658816,1735157447068,-500.0,0.00012256,2]
[346658817,1735157447078,-500.0,0.00012256,2]
[346658818,1735157447087,-500.0,0.00012256,2]
[346658819,1735157447097,-1131.81,0.00012256,2]
[346658820,1735157447106,-500.0,0.00012256,2]
[346658821,1735157447115,-589.46,0.00012256,2]
[346658822,1735157447124,-500.0,0.00012256,2]
[346658823,1735157447133,-976.02,0.00012256,2]
[346658824,1735157447144,-600.58,0.00012256,2]
[346658825,1735157447153,-1285.87,0.00012256,2]
[346658826,1735157447162,-500.0,0.00012256,2]
[346658827,1735157447172,-1000.0,0.00012256,2]
[346658828,1735157447181,-811.03,0.00012256,2]
[346658829,1735157447192,-843.73,0.00012256,2]
[346658830,1735157447202,-1834.83,0.00012256,2]
[346658831,1735157447211,-243.58621509,0.00012256,2]
[346658832,1735157447223,-722.95378491,0.00012256,2]
[346658833,1735157447234,-3539.164209,0.00012293,2]
[346658834,1735157447243,-459.673,0.00012301,2]
[346658835,1735157447252,-12341.3502717,0.00012312,2]
[346658836,1735157447262,-6157.9296412,0.0001232,2]
[346658837,1735157447271,-500.0,0.00012328,2]
[346658838,1735157447281,-500.0,0.00012328,2]
[346658839,1735157447291,-381.631,0.0001235,2]
[346658840,1735157447299,-163.0,0.00012356,2]
[346658841,1735157447308,-615.49984452,0.00012399,2]
[346658842,1735157447318,-615.49984452,0.00012399,2]
[346658843,1735157447327,-615.49984452,0.00012399,2]
[346658844,1735157447336,-615.49984452,0.00012404,2]
[346658845,1735157447345,-615.49984452,0.00012487,2]
[346658846,1735157447355,-169.2653154,0.00012528,2]
[346658847,1735157447364,-1710.03355519,0.00012528,2]
[346658848,1735157447376,-14.45644481,0.00012528,2]
[346658849,1735157447385,-1671.63,0.00012528,2]
[346658850,1735157447394,-3736.24,0.00012528,2]
[346658851,1735157447403,-825.68,0.00012528,2]
[346658852,1735157447412,-500.0,0.00012528,2]
[346658853,1735157447421,-500.0,0.00012528,2]
[346658854,1735157447434,-928.03,0.00012528,2]
[346658855,1735157447443,-848.65,0.00012528,2]
[346658856,1735157447452,-298.91355519,0.00012528,2]
[346658857,1735157447469,-406.98668656,0.00012528,2]
[346658858,1735157447480,-325.91,0.00012528,2]
[346658859,1735157447496,-269.74975825,0.00012528,2]
[346658860,1735157447505,-222.65524175,0.00012528,2]
[346658861,1735157447516,-208.56279425,0.00012528,2]
[346658862,1735157447525,-291.43720575,0.00012528,2]
[346658863,1735157774523,615.1821159,0.00024927,120]
[346658864,1735158216647,33764.17960213,0.00018,30]
[346658866,1735158562105,-376.25,9.553e-05,2]
[346658867,1735158562125,-1000.0,0.000107,2]
[346658878,1735158632300,-183.03,0.00011458,2]
[346658879,1735158632310,-8622.48727908,0.00011573,2]
[346658880,1735158635470,-2638.86621395,0.00011573,2]
[346658881,1735158635568,-327.9793269,0.00011573,2]
[346658882,1735158635586,-362.94287197,0.00011573,2]
[346658883,1735158635647,-2237.4943081,0.00011573,2]
[346658884,1735158635658,-346.63407062,0.00011615,2]
[346658885,1735158635669,-91.68592938,0.00011615,2]
[346658886,1735158635678,-202.27,0.00011641,2]
[346658887,1735158635687,-250.0,0.00011664,2]
[346658888,1735158635697,-250.0,0.00011696,2]
[346658889,1735158635706,-200.0,0.00011736,2]
[346658890,1735158635715,-376.25,0.00011817,2]
[346658891,1735158635724,-365.869,0.000119,2]
[346658892,1735158635733,-46.49507062,0.00012037,2]
[346658893,1735158635758,-953.50492938,0.00012037,2]
[346658894,1735158635767,-156.627051,0.00012254,2]
[346658895,1735158635776,-500.0,0.00012254,2]
[346658896,1735158635787,-500.0,0.00012254,2]
[346658897,1735158635796,-405.8109214,0.00012254,2]
[346658901,1735158638282,-94.1890786,0.00012254,2]
[346658902,1735158638292,-500.0,0.00012254,2]
[346658903,1735158638301,-500.0,0.00012254,2]
[346658904,1735158638310,-500.0,0.00012254,2]
[346658905,1735158638319,-500.0,0.00012254,2]
[346658906,1735158638327,-500.0,0.00012254,2]
[346658907,1735158638336,-500.0,0.00012254,2]
[346658908,1735158638345,-273.72,0.00012254,2]
[346658909,1735158638354,-500.0,0.00012254,2]
[346658910,1735158638363,-500.0,0.00012254,2]
[346658911,1735158638372,-500.0,0.00012254,2]
[346658912,1735158638383,-500.0,0.00012254,2]
[346658913,1735158638392,-500.0,0.00012254,2]
[346658914,1735158638401,-500.0,0.00012254,2]
[346658915,1735158638411,-500.0,0.00012254,2]
[346658916,1735158638421,-500.0,0.00012254,2]
[346658917,1735158638431,-500.0,0.00012254,2]
[346658918,1735158638440,-500.0,0.00012254,2]
[346658919,1735158638450,-500.0,0.00012254,2]
[346658920,1735158638459,-500.0,0.00012254,2]
[346658921,1735158638468,-500.0,0.00012254,2]
[346658922,1735158638477,-500.0,0.00012254,2]
[346658923,1735158638486,-500.0,0.00012254,2]
[346658924,1735158638496,-500.0,0.00012254,2]
[346658925,1735158638505,-500.0,0.00012254,2]
[346658927,1735158638514,-500.0,0.00012254,2]
[346658929,1735158638523,-500.0,0.00012254,2]
[346658931,1735158638532,-500.0,0.00012254,2]
[346658933,1735158638541,-502.22983314,0.00012254,2]
[346658934,1735158638550,-500.0,0.00012254,2]
[346658936,1735158638559,-500.0,0.00012254,2]
[346658938,1735158638568,-500.0,0.00012254,2]
[346658941,1735158638577,-500.0,0.00012254,2]
[346658942,1735158638586,-500.0,0.00012254,2]
[346658943,1735158638595,-436.45799786,0.00012254,2]
[346658944,1735158638607,-63.54200214,0.00012254,2]
[346658945,1735158638616,-500.78977273,0.00012254,2]
[346658946,1735158638628,-396.96649017,0.00012254,2]
[346658947,1735158638637,-500.0,0.00012254,2]
[346658948,1735158638648,-500.0,0.00012254,2]
[346658949,1735158638658,-500.0,0.00012254,2]
[346658950,1735158638667,-500.0,0.00012254,2]
[346658951,1735158638676,-500.0,0.00012254,2]
[346658952,1735158638686,-214.59636726,0.00012254,2]
[346658954,1735158638697,-500.0,0.00012254,2]
[346658956,1735158638706,-500.0,0.00012254,2]
[346658958,1735158638715,-500.0,0.00012254,2]
[346658959,1735158638724,-500.0,0.00012254,2]
[346658960,1735158638734,-500.0,0.00012254,2]
[346658962,1735158638743,-500.0,0.00012254,2]
[346658964,1735158638752,-500.0,0.00012254,2]
[346658966,1735158638761,-500.0,0.00012254,2]
[346658967,1735158638771,-500.0,0.00012254,2]
[346658968,1735158638781,-500.0,0.00012254,2]
[346658969,1735158638791,-500.0,0.00012254,2]
[346658970,1735158638800,-500.0,0.00012254,2]
[346658971,1735158638809,-500.0,0.00012254,2]
[346658972,1735158638818,-500.0,0.00012254,2]
[346658973,1735158638828,-747.69,0.00012254,2]
[346658974,1735158638837,-500.0,0.00012254,2]
[346658975,1735158638847,-500.0,0.00012254,2]
[346658976,1735158638857,-553.67,0.00012254,2]
[346658977,1735158638866,-500.0,0.00012254,2]
[346658978,1735158638875,-500.0,0.00012254,2]
[346658979,1735158638884,-500.0,0.00012254,2]
[346658980,1735158638894,-500.0,0.00012254,2]
[346658981,1735158638904,-500.0,0.00012254,2]
[346658982,1735158638913,-826.26,0.00012254,2]
[346658983,1735158638923,-500.0,0.00012254,2]
[346658984,1735158638932,-500.0,0.00012254,2]
[346658985,1735158638941,-500.0,0.00012254,2]
[346658986,1735158638954,-500.0,0.00012254,2]
[346658987,1735158638963,-500.0,0.00012254,2]
[346658988,1735158638972,-500.0,0.00012254,2]
[346658989,1735158638982,-500.0,0.00012254,2]
[346658990,1735158638991,-500.0,0.00012254,2]
[346658991,1735158639000,-497.4950077,0.00012254,2]
[346659002,1735158639316,-2.5049923,0.00012254,2]
[346659004,1735158639327,-500.0,0.00012254,2]
[346659006,1735158639337,-505.2,0.00012254,2]
[346659008,1735158639346,-500.0,0.00012254,2]
[346659010,1735158639355,-500.0,0.00012254,2]
[346659012,1735158639364,-500.0,0.00012254,2]
[346659014,1735158639373,-500.0,0.00012255,2]
[346659016,1735158639382,-502.27714388,0.00012255,2]
[346659018,1735158639391,-500.0,0.00012255,2]
[346659020,1735158639400,-50.15946032,0.00012255,2]
[346659022,1735158639411,-449.84053968,0.00012255,2]
[346659024,1735158639421,-500.0,0.00012255,2]
[346659026,1735158639430,-500.0,0.00012255,2]
[346659028,1735158639439,-410.20298158,0.00012255,2]
[346659030,1735158639453,-95.07882649,0.00012255,2]
[346659032,1735158639462,-500.0,0.00012255,2]
[346659034,1735158639471,-500.33875625,0.00012255,2]
[346659036,1735158639481,-469.9491991,0.00012255,2]
[346659038,1735158639490,-500.0,0.00012255,2]
[346659040,1735158639499,-503.03940796,0.00012255,2]
[346659042,1735158639507,-501.83621627,0.00012255,2]
[346659044,1735158639517,-500.0,0.00012255,2]
[346659046,1735158639525,-507.64528435,0.00012255,2]
[346659048,1735158639534,-500.0,0.00012255,2]
[346659050,1735158639543,-500.0,0.00012255,2]
[346659052,1735158639552,-503.83862218,0.00012255,2]
[346659054,1735158639561,-328.70109905,0.00012255,2]
[346659056,1735158639570,-500.0,0.00012255,2]
[346659058,1735158639580,-500.0,0.00012255,2]
[346659060,1735158639589,-500.0,0.00012255,2]
[346659062,1735158639597,-500.0,0.00012255,2]
[346659064,1735158639606,-500.0,0.00012255,2]
[346659066,1735158639615,-500.0,0.00012255,2]
[346659068,1735158639625,-500.0,0.00012255,2]
[346659070,1735158639635,-1302.04,0.00012255,2]
[346659071,1735158639644,-500.0,0.00012255,2]
[346659073,1735158639654,-500.0,0.00012255,2]
[346659075,1735158639663,-213.99897382,0.00012255,2]
[346659078,1735158639674,-286.00102618,0.00012255,2]
[346659080,1735158639683,-500.0,0.00012255,2]
[346659082,1735158639692,-213.21421426,0.00012255,2]
[346659138,1735158640314,-286.78578574,0.00012255,2]
[346659140,1735158640323,-500.0,0.00012255,2]
[346659142,1735158640333,-500.0,0.00012255,2]
[346659144,1735158640342,-500.0,0.00012255,2]
[346659146,1735158640352,-338.15582143,0.00012255,2]
[346659149,1735158640363,-161.84417857,0.00012255,2]
[346659150,1735158640372,-289.66580863,0.00012255,2]
[346659157,1735158640427,-210.33419137,0.00012255,2]
[346659159,1735158640436,-500.0,0.00012255,2]
[346659161,1735158640445,-500.0,0.00012255,2]
[346659163,1735158640454,-500.0,0.00012255,2]
[346659165,1735158640464,-500.0,0.00012255,2]
[346659167,1735158640473,-586.38,0.00012255,2]
[346659169,1735158640482,-500.0,0.00012255,2]
[346659171,1735158640492,-500.0,0.00012255,2]
[346659173,1735158640502,-500.0,0.00012255,2]
[346659175,1735158640511,-500.0,0.00012255,2]
[346659177,1735158640521,-500.0,0.00012255,2]
[346659179,1735158640530,-500.0,0.00012255,2]
[346659181,1735158640540,-500.0,0.00012255,2]
[346659183,1735158640550,-500.0,0.00012255,2]
[346659185,1735158640559,-391.97209536,0.00012255,2]
[346659187,1735158640568,-500.0,0.00012328,2]
[346659189,1735158640577,-635.0,0.00012424,2]
[346659191,1735158640586,-182.44171554,0.00012425,2]
[346659192,1735158640594,-160.80204963,0.00012427,2]
[346659195,1735158640604,-4523.3410914,0.00012427,2]
[346659197,1735158640614,-182.44171554,0.00012478,2]
[346659199,1735158640623,-4523.34109135,0.0001248,2]
[346659200,1735158640637,-500.0,0.00012525,2]
[346659202,1735158640646,-1274.44,0.00012525,2]
[346659204,1735158640655,-500.0,0.00012525,2]
[346659206,1735158640664,-2405.07,0.00012525,2]
[346659209,1735158640674,-655.8,0.00012525,2]
[346659210,1735158640683,-1580.78,0.00012525,2]
[346659213,1735158640693,-1532.32,0.00012525,2]
[346659215,1735158640704,-3424.88,0.00012525,2]
[346659217,1735158640713,-756.87,0.00012525,2]
[346659219,1735158640722,-500.0,0.00012525,2]
[346659221,1735158640731,-500.0,0.00012525,2]
[346659223,1735158640740,-850.69,0.00012525,2]
[346659225,1735158640749,-155.940262,0.00012525,2]
[346659227,1735158640758,-154.009462,0.00012525,2]
[346659229,1735158640767,-507.159968,0.00012525,2]
[346659231,1735158640777,-777.93,0.00012525,2]
[346659233,1735158640786,-606.358213,0.00012525,2]
[346659235,1735158640795,-500.0,0.00012525,2]
[346659236,1735158640806,-1193.09,0.00012525,2]
[346659239,1735158640816,-970.85,0.00012525,2]
[346659240,1735158640825,-2816.85,0.00012525,2]
[346659242,1735158640834,-704.99,0.00012525,2]
[346659245,1735158640844,-833.97,0.00012525,2]
[346659247,1735158640854,-1032.65,0.00012525,2]
[346659248,1735158640863,-591.76,0.00012525,2]
[346659250,1735158640872,-751.17,0.00012525,2]
[346659252,1735158640882,-500.0,0.00012525,2]
[346659254,1735158640891,-1375.25,0.00012525,2]
[346659257,1735158640901,-507.25,0.00012525,2]
[346659259,1735158640910,-5410.6,0.00012525,2]
[346659261,1735158640919,-1138.94,0.00012525,2]
[346659263,1735158640929,-1207.77,0.00012525,2]
[346659265,1735158640938,-1001.22,0.00012525,2]
[346659267,1735158640948,-500.0,0.00012525,2]
[346659269,1735158640957,-6183.94,0.00012525,2]
[346659271,1735158640967,-5135.02,0.00012525,2]
[346659273,1735158640976,-1106.21,0.00012525,2]
[346659274,1735158640985,-2018.17,0.00012525,2]
[346659277,1735158640996,-1612.11,0.00012525,2]
[346659279,1735158641005,-3229.07,0.00012525,2]
[346659281,1735158641014,-998.7,0.00012525,2]
[346659283,1735158641023,-500.0,0.00012525,2]
[346659285,1735158641032,-2377.33,0.00012525,2]
[346659287,1735158641041,-878.69,0.00012525,2]
[346659289,1735158641052,-1127.38,0.00012525,2]
[346659291,1735158641061,-1248.8,0.00012525,2]
[346659293,1735158641070,-1337.61,0.00012525,2]
[346659295,1735158641079,-1983.38,0.00012525,2]
[346659297,1735158641089,-289.30345149,0.00012525,2]
[346659300,1735158641115,-1092.73654851,0.00012525,2]
[346659302,1735158641124,-2138.39,0.00012525,2]
[346659304,1735158641133,-938.36,0.00012525,2]
[346659306,1735158641142,-4977.07513242,0.00012525,2]
[346659308,1735158641154,-794.69486758,0.00012525,2]
[346659309,1735158641162,-296.63713242,0.00012525,2]
[346659320,1735158641380,-203.36286758,0.00012525,2]
[346659321,1735158641390,-1183.58,0.00012525,2]
[346659322,1735158641399,-500.0,0.00012525,2]
[346659323,1735158641408,-5630.48154927,0.00012525,2]
[346659324,1735158641419,-199.15845073,0.00012525,2]
[346659325,1735158641428,-551.87,0.00012525,2]
[346659326,1735158641437,-292.93154928,0.00012525,2]
[346659327,1735158641448,-207.06845072,0.00012525,2]
[346659328,1735158641457,-130.88504936,0.00012525,2]
[346659329,1735158641470,-489.4,0.00012525,2]
[346659331,1735158641491,-930.53495064,0.00012525,2]
[346659332,1735158641500,-500.0,0.00012525,2]
[346659333,1735158641509,-537.29,0.00012525,2]
[346659334,1735158641518,-500.0,0.00012525,2]
[346659335,1735158641528,-78.85999836,0.00012525,2]
[346659336,1735158641539,-615.86000164,0.00012525,2]
[346659337,1735158641549,-354.62999836,0.00012525,2]
[346659338,1735158641560,-242.47000164,0.00012525,2]
[346659339,1735158641569,-450.17999736,0.00012525,2]
[346659340,1735158641582,-49.82000264,0.00012525,2]
[346659341,1735158641591,-500.0,0.00012525,2]
[346659342,1735158641601,-500.0,0.00012525,2]
[346659343,1735158641610,-54.78000236,0.00012525,2]
[346659344,1735158641621,-495.01999764,0.00012525,2]
[346659345,1735158641632,-50.08000236,0.00012525,2]
[346659346,1735158641644,-375.37,0.00012525,2]
[346659347,1735158641657,-74.54999764,0.00012525,2]
[346659348,1735158641667,-416.73819126,0.00012525,2]
[346659350,1735158643247,-282.07,0.00012525,2]
[346659351,1735158643258,-463.59,0.00012525,2]
[346659352,1735158643303,-312.47180874,0.00012525,2]
[346659353,1735158643312,-501.30399202,0.00012525,2]
[346659354,1735158643321,-500.0,0.00012525,2]
[346659355,1735158643330,-500.0,0.00012525,2]
[346659356,1735158643339,-500.0,0.00012525,2]
[346659357,1735158643348,-861.88,0.00012525,2]
[346659358,1735158643357,-500.0,0.00012525,2]
[346659359,1735158643367,-500.0,0.00012525,2]
[346659360,1735158643378,-500.0,0.00012525,2]
[346659361,1735158643388,-500.0,0.00012525,2]
[346659362,1735158643398,-643.89,0.00012525,2]
[346659363,1735158643409,-500.0,0.00012525,2]
[346659364,1735158643419,-500.0,0.00012525,2]
[346659365,1735158643431,-500.0,0.00012525,2]
[346659366,1735158643440,-589.9,0.00012525,2]
[346659367,1735158643449,-500.0,0.00012525,2]
[346659368,1735158643459,-500.0,0.00012525,2]
[346659369,1735158643469,-510.84185417,0.00012526,2]
[346659370,1735158643479,-500.0,0.00012526,2]
[346659371,1735158643488,-504.41460132,0.00012526,2]
[346659372,1735158643499,-500.0,0.00012526,2]
[346659373,1735158643511,-500.0,0.00012526,2]
[346659374,1735158643520,-500.0,0.00012526,2]
[346659375,1735158643529,-500.0,0.00012526,2]
[346659376,1735158643538,-500.0,0.00012526,2]
[346659377,1735158643549,-500.0,0.00012526,2]
[346659378,1735158643560,-500.0,0.00012526,2]
[346659379,1735158643569,-500.0,0.00012526,2]
[346659380,1735158643578,-191.82204302,0.00012526,2]
[346659381,1735158643587,-500.0,0.00012526,2]
[346659383,1735158643596,-500.0,0.00012526,2]
[346659385,1735158643605,-500.0,0.00012526,2]
[346659386,1735158643614,-500.0,0.00012526,2]
[346659387,1735158643623,-500.0,0.00012526,2]
[346659388,1735158643636,-500.0,0.00012526,2]
[346659389,1735158643645,-500.0,0.00012526,2]
[346659390,1735158643656,-511.76465067,0.00012526,2]
[346659391,1735158643665,-500.0,0.00012526,2]
[346659392,1735158643675,-500.0,0.00012526,2]
[346659393,1735158643684,-500.0,0.00012526,2]
[346659394,1735158643693,-500.0,0.00012526,2]
[346659395,1735158643703,-500.0,0.00012526,2]
[346659396,1735158643713,-596.3547142,0.00012526,2]
[346659397,1735158643722,-500.0,0.00012526,2]
[346659398,1735158643732,-500.0,0.00012526,2]
[346659399,1735158643741,-500.0,0.00012526,2]
[346659400,1735158643750,-500.0,0.00012526,2]
[346659401,1735158643759,-500.0,0.00012526,2]
[346659403,1735158643768,-500.0,0.00012526,2]
[346659405,1735158643778,-500.0,0.00012526,2]
[346659406,1735158643787,-500.0,0.00012526,2]
[346659407,1735158643796,-500.0,0.00012526,2]
[346659408,1735158643805,-500.0,0.00012526,2]
[346659409,1735158643814,-500.0,0.00012526,2]
[346659410,1735158643824,-500.0,0.00012526,2]
[346659411,1735158643833,-500.0,0.00012526,2]
[346659412,1735158643843,-500.0,0.00012526,2]
[346659413,1735158643853,-500.0,0.00012526,2]
[346659414,1735158643863,-500.0,0.00012526,2]
[346659415,1735158643872,-500.0,0.00012526,2]
[346659416,1735158643881,-500.0,0.00012526,2]
[346659417,1735158643890,-500.0,0.00012526,2]
[346659418,1735158643900,-318.00553879,0.00012526,2]
[346659419,1735158643910,-500.0,0.00012526,2]
[346659420,1735158643919,-500.0,0.00012526,2]
[346659421,1735158643928,-501.42933698,0.00012526,2]
[346659422,1735158643937,-500.0,0.00012526,2]
[346659423,1735158643946,-500.0,0.00012526,2]